[Event "Titled Tuesday Blitz May 24 Early 2022"]
[White "Costachi, Mihnea"]
[Black "Maksimenko, Viktor"]
[WhiteFideId "1217518"]
[BlackFideId "13710478"]
[WhiteElo "2476"]
[BlackElo "2269"]
[Result "0-1"]
[Round "03"]
[TimeControl "180+1"]
[Date "2022.05.24"]
[WhiteClock "0:01:13"]
[BlackClock "0:00:35"]

1. d4 {[%clk 0:03:00]}  Nf6 {[%clk 0:03:00]} 2. Bg5 {[%clk 0:03:01]}  Ne4 {[%clk 0:02:55]} 3. Bf4 {[%clk 0:03:01]}  c5 {[%clk 0:02:55]} 4. c3 {[%clk 0:03:00]}  Qb6 {[%clk 0:02:51]} 5. Nd2 {[%clk 0:02:58]}  Nxd2 {[%clk 0:02:43]} 6. Qxd2 {[%clk 0:02:59]}  d5 {[%clk 0:02:29]} 7. e3 {[%clk 0:02:56]}  e6 {[%clk 0:02:03]} 8. Nf3 {[%clk 0:02:54]}  Bd7 {[%clk 0:01:58]} 9. Bd3 {[%clk 0:02:54]}  Bb5 {[%clk 0:01:57]} 10. O-O {[%clk 0:02:51]}  Bxd3 {[%clk 0:01:54]} 11. Qxd3 {[%clk 0:02:52]}  Nc6 {[%clk 0:01:53]} 12. dxc5 {[%clk 0:02:51]}  Bxc5 {[%clk 0:01:53]} 13. b4 {[%clk 0:02:51]}  Be7 {[%clk 0:01:52]} 14. a3 {[%clk 0:02:49]}  O-O {[%clk 0:01:49]} 15. c4 {[%clk 0:02:50]}  dxc4 {[%clk 0:01:47]} 16. Qxc4 {[%clk 0:02:51]}  Rac8 {[%clk 0:01:46]} 17. Qe4 {[%clk 0:02:49]}  Bf6 {[%clk 0:01:40]} 18. Rac1 {[%clk 0:02:48]}  h6 {[%clk 0:01:22]} 19. Bd6 {[%clk 0:02:48]}  Rfd8 {[%clk 0:01:21]} 20. Rfd1 {[%clk 0:02:44]}  Bb2 {[%clk 0:01:17]} 21. Bc5 {[%clk 0:02:42]}  Qa6 {[%clk 0:01:14]} 22. Rb1 {[%clk 0:02:35]}  Qxa3 {[%clk 0:01:04]} 23. h4 {[%clk 0:02:19]}  Bf6 {[%clk 0:01:05]} 24. Bd6 {[%clk 0:02:06]}  Qa4 {[%clk 0:01:02]} 25. Rd2 {[%clk 0:01:57]}  a5 {[%clk 0:01:01]} 26. g4 {[%clk 0:01:49]}  g6 {[%clk 0:00:56]} 27. g5 {[%clk 0:01:43]}  hxg5 {[%clk 0:00:56]} 28. hxg5 {[%clk 0:01:43]}  Bg7 {[%clk 0:00:56]} 29. Kg2 {[%clk 0:01:39]}  axb4 {[%clk 0:00:53]} 30. Rh1 {[%clk 0:01:39]}  Qb5 {[%clk 0:00:39]} 31. Qh4 {[%clk 0:01:35]}  Rxd6 {[%clk 0:00:40]} 32. Rxd6 {[%clk 0:01:36]}  b3 {[%clk 0:00:39]} 33. Rd7 {[%clk 0:01:33]}  b2 {[%clk 0:00:36]} 34. Qh7+ {[%clk 0:01:32]}  Kf8 {[%clk 0:00:36]} 35. Qh8+ {[%clk 0:01:33]}  Bxh8 {[%clk 0:00:35]} 36. Rxh8+ {[%clk 0:01:34]}  Kg7 {[%clk 0:00:36]} 37. Rxc8 {[%clk 0:01:19]}  b1=Q {[%clk 0:00:35]} 38. Rdd8 {[%clk 0:01:13]}  Nxd8 {[%clk 0:00:35]} 0-1


[Site "https://www.chess.com"]

[Event "Titled Tuesday Blitz May 24 Early 2022"]
[White "Djokic, Mihailo"]
[Black "Horak, Martin"]
[WhiteFideId "976440"]
[BlackFideId "367095"]
[WhiteElo "2202"]
[BlackElo "1997"]
[Result "1-0"]
[Round "03"]
[TimeControl "180+1"]
[Date "2022.05.25"]
[WhiteClock "0:00:18"]
[BlackClock "0:00:19"]

1. e4 {[%clk 0:03:00]}  e5 {[%clk 0:03:00]} 2. Nf3 {[%clk 0:03:00]}  Nc6 {[%clk 0:03:00]} 3. Nc3 {[%clk 0:03:01]}  Nf6 {[%clk 0:03:00]} 4. Bb5 {[%clk 0:03:01]}  Bb4 {[%clk 0:03:00]} 5. O-O {[%clk 0:03:01]}  O-O {[%clk 0:03:00]} 6. d3 {[%clk 0:03:01]}  Bxc3 {[%clk 0:03:00]} 7. bxc3 {[%clk 0:03:02]}  d6 {[%clk 0:03:00]} 8. Re1 {[%clk 0:03:02]}  a6 {[%clk 0:02:59]} 9. Ba4 {[%clk 0:03:01]}  Qe7 {[%clk 0:02:54]} 10. d4 {[%clk 0:02:54]}  Bg4 {[%clk 0:02:44]} 11. h3 {[%clk 0:02:53]}  Bxf3 {[%clk 0:02:15]} 12. Qxf3 {[%clk 0:02:51]}  b5 {[%clk 0:02:16]} 13. Bb3 {[%clk 0:02:36]}  exd4 {[%clk 0:02:15]} 14. Bg5 {[%clk 0:02:34]}  dxc3 {[%clk 0:02:08]} 15. Qxc3 {[%clk 0:02:26]}  Ne5 {[%clk 0:01:58]} 16. f4 {[%clk 0:02:24]}  Nc4 {[%clk 0:01:53]} 17. Bxc4 {[%clk 0:02:06]}  bxc4 {[%clk 0:01:53]} 18. e5 {[%clk 0:02:01]}  dxe5 {[%clk 0:01:50]} 19. fxe5 {[%clk 0:01:59]}  Qc5+ {[%clk 0:01:36]} 20. Be3 {[%clk 0:01:58]}  Nd5 {[%clk 0:01:30]} 21. Bxc5 {[%clk 0:01:55]}  Nxc3 {[%clk 0:01:31]} 22. Bxf8 {[%clk 0:01:55]}  Kxf8 {[%clk 0:01:32]} 23. Re3 {[%clk 0:01:55]}  Nb5 {[%clk 0:01:25]} 24. Rd1 {[%clk 0:01:44]}  Ke7 {[%clk 0:01:25]} 25. a4 {[%clk 0:01:44]}  Na7 {[%clk 0:01:21]} 26. Rc3 {[%clk 0:01:43]}  Rb8 {[%clk 0:01:15]} 27. Rxc4 {[%clk 0:01:42]}  Rb7 {[%clk 0:01:16]} 28. Rd5 {[%clk 0:01:38]}  Nc8 {[%clk 0:01:13]} 29. Rdc5 {[%clk 0:01:36]}  Kd7 {[%clk 0:01:12]} 30. Rd4+ {[%clk 0:01:36]}  Ke7 {[%clk 0:01:12]} 31. a5 {[%clk 0:01:35]}  Na7 {[%clk 0:01:10]} 32. Rdc4 {[%clk 0:01:33]}  Kd7 {[%clk 0:01:10]} 33. Rh4 {[%clk 0:01:12]}  h6 {[%clk 0:01:04]} 34. Rg4 {[%clk 0:01:12]}  g6 {[%clk 0:01:04]} 35. Rf4 {[%clk 0:01:03]}  Ke7 {[%clk 0:01:00]} 36. Rf6 {[%clk 0:01:01]}  Nb5 {[%clk 0:00:59]} 37. Rxa6 {[%clk 0:01:00]}  Nd4 {[%clk 0:00:59]} 38. Kh2 {[%clk 0:00:54]}  h5 {[%clk 0:00:55]} 39. Ra8 {[%clk 0:00:51]}  h4 {[%clk 0:00:51]} 40. g3 {[%clk 0:00:39]}  g5 {[%clk 0:00:28]} 41. gxh4 {[%clk 0:00:36]}  gxh4 {[%clk 0:00:25]} 42. a6 {[%clk 0:00:34]}  Rb1 {[%clk 0:00:22]} 43. a7 {[%clk 0:00:25]}  Rd1 {[%clk 0:00:22]} 44. Re8+ {[%clk 0:00:21]}  Kxe8 {[%clk 0:00:18]} 45. a8=Q+ {[%clk 0:00:21]}  Ke7 {[%clk 0:00:19]} 46. Rxc7+ {[%clk 0:00:21]}  Ke6 {[%clk 0:00:19]} 47. Qc8+ {[%clk 0:00:19]}  Kxe5 {[%clk 0:00:19]} 48. Re7+ {[%clk 0:00:19]}  Kf4 {[%clk 0:00:19]} 49. Qg4# {[%clk 0:00:18]} 1-0


[Site "https://www.chess.com"]

[Event "Titled Tuesday Blitz May 24 Early 2022"]
[White "Dmitrenko, Viktor"]
[Black "Seemann, Jakub"]
[WhiteFideId "14110270"]
[BlackFideId "21874697"]
[WhiteElo "2218"]
[BlackElo "2003"]
[Result "0-1"]
[Round "03"]
[TimeControl "180+1"]
[Date "2022.05.25"]
[WhiteClock "0:00:10"]
[BlackClock "0:01:24"]

1. Nf3 {[%clk 0:03:00]}  Nf6 {[%clk 0:03:00]} 2. d4 {[%clk 0:02:57]}  b6 {[%clk 0:03:00]} 3. c4 {[%clk 0:02:56]}  Bb7 {[%clk 0:02:59]} 4. a3 {[%clk 0:02:56]}  e6 {[%clk 0:02:59]} 5. Nc3 {[%clk 0:02:56]}  c5 {[%clk 0:02:59]} 6. d5 {[%clk 0:02:56]}  exd5 {[%clk 0:02:59]} 7. cxd5 {[%clk 0:02:56]}  d6 {[%clk 0:02:59]} 8. g3 {[%clk 0:02:55]}  Nbd7 {[%clk 0:02:55]} 9. Bh3 {[%clk 0:02:54]}  Be7 {[%clk 0:02:54]} 10. O-O {[%clk 0:02:52]}  O-O {[%clk 0:02:53]} 11. e4 {[%clk 0:02:51]}  a6 {[%clk 0:02:51]} 12. a4 {[%clk 0:02:50]}  Re8 {[%clk 0:02:48]} 13. Nd2 {[%clk 0:02:48]}  Bf8 {[%clk 0:02:48]} 14. f4 {[%clk 0:02:47]}  Qc7 {[%clk 0:02:47]} 15. Qf3 {[%clk 0:02:38]}  c4 {[%clk 0:02:39]} 16. Kh1 {[%clk 0:02:26]}  Nc5 {[%clk 0:02:38]} 17. g4 {[%clk 0:02:03]}  Kh8 {[%clk 0:02:29]} 18. g5 {[%clk 0:02:03]}  Nfxe4 {[%clk 0:02:29]} 19. Ndxe4 {[%clk 0:02:01]}  Nxe4 {[%clk 0:02:29]} 20. Nxe4 {[%clk 0:01:52]}  Bxd5 {[%clk 0:02:27]} 21. Bf5 {[%clk 0:01:52]}  g6 {[%clk 0:02:26]} 22. Kg1 {[%clk 0:00:47]}  gxf5 {[%clk 0:02:22]} 23. Qc3+ {[%clk 0:00:47]}  Bg7 {[%clk 0:02:21]} 24. Nf6 {[%clk 0:00:47]}  Qc5+ {[%clk 0:02:19]} 25. Rf2 {[%clk 0:00:46]}  Re6 {[%clk 0:02:09]} 26. Bd2 {[%clk 0:00:32]}  Bxf6 {[%clk 0:02:04]} 27. gxf6 {[%clk 0:00:31]}  Rg8+ {[%clk 0:02:04]} 28. Kf1 {[%clk 0:00:32]}  Be4 {[%clk 0:01:45]} 29. Re1 {[%clk 0:00:19]}  Bd3+ {[%clk 0:01:44]} 30. Qxd3 {[%clk 0:00:20]}  cxd3 {[%clk 0:01:42]} 31. Rxe6 {[%clk 0:00:20]}  fxe6 {[%clk 0:01:41]} 32. f7 {[%clk 0:00:20]}  Rf8 {[%clk 0:01:35]} 33. Bc3+ {[%clk 0:00:21]}  e5 {[%clk 0:01:32]} 34. fxe5 {[%clk 0:00:21]}  dxe5 {[%clk 0:01:31]} 35. Rxf5 {[%clk 0:00:21]}  Kg7 {[%clk 0:01:30]} 36. Bxe5+ {[%clk 0:00:19]}  Kg6 {[%clk 0:01:30]} 37. Rf6+ {[%clk 0:00:17]}  Kg5 {[%clk 0:01:31]} 38. h4+ {[%clk 0:00:10]}  Kxh4 {[%clk 0:01:30]} 39. Bc3 {[%clk 0:00:10]}  d2 {[%clk 0:01:28]} 40. Rf4+ {[%clk 0:00:09]}  Kg3 {[%clk 0:01:26]} 41. Bxd2 {[%clk 0:00:10]}  Rxf7 {[%clk 0:01:24]} 42. Rxf7 {[%clk 0:00:10]}  Qc4+ {[%clk 0:01:24]} 0-1


[Site "https://www.chess.com"]

[Event "Titled Tuesday Blitz May 24 Early 2022"]
[White "Drygalov, Sergey"]
[Black "Aradhya, Garg"]
[WhiteFideId "24171743"]
[BlackFideId "25006746"]
[WhiteElo "2514"]
[BlackElo "2169"]
[Result "1/2-1/2"]
[Round "03"]
[TimeControl "180+1"]
[Date "2022.05.24"]
[WhiteClock "0:00:29"]
[BlackClock "0:00:21"]

1. d4 {[%clk 0:02:58]}  d5 {[%clk 0:02:59]} 2. c4 {[%clk 0:02:56]}  c6 {[%clk 0:02:59]} 3. Nf3 {[%clk 0:02:57]}  Nf6 {[%clk 0:02:59]} 4. Nc3 {[%clk 0:02:57]}  dxc4 {[%clk 0:02:59]} 5. g3 {[%clk 0:02:56]}  g6 {[%clk 0:02:55]} 6. e4 {[%clk 0:02:56]}  b5 {[%clk 0:02:54]} 7. e5 {[%clk 0:02:50]}  Nd5 {[%clk 0:02:53]} 8. a4 {[%clk 0:02:47]}  Bg7 {[%clk 0:02:53]} 9. axb5 {[%clk 0:02:42]}  Nxc3 {[%clk 0:02:53]} 10. bxc3 {[%clk 0:02:42]}  cxb5 {[%clk 0:02:53]} 11. Bg2 {[%clk 0:02:43]}  Bb7 {[%clk 0:02:52]} 12. e6 {[%clk 0:02:43]}  O-O {[%clk 0:02:52]} 13. exf7+ {[%clk 0:02:39]}  Rxf7 {[%clk 0:02:52]} 14. O-O {[%clk 0:02:34]}  Qd5 {[%clk 0:02:51]} 15. Nh4 {[%clk 0:02:34]}  Qd7 {[%clk 0:02:51]} 16. Re1 {[%clk 0:02:28]}  Bxg2 {[%clk 0:02:29]} 17. Nxg2 {[%clk 0:02:29]}  Nc6 {[%clk 0:02:30]} 18. Ra6 {[%clk 0:02:19]}  Qb7 {[%clk 0:02:29]} 19. Ra2 {[%clk 0:02:18]}  b4 {[%clk 0:02:27]} 20. Be3 {[%clk 0:01:54]}  bxc3 {[%clk 0:02:21]} 21. Qa4 {[%clk 0:01:52]}  Nxd4 {[%clk 0:02:15]} 22. Bxd4 {[%clk 0:01:49]}  Bxd4 {[%clk 0:02:14]} 23. Qxc4 {[%clk 0:01:50]}  e5 {[%clk 0:01:58]} 24. Ne3 {[%clk 0:01:41]}  Kg7 {[%clk 0:01:42]} 25. h4 {[%clk 0:01:11]}  Rc8 {[%clk 0:01:39]} 26. Qd3 {[%clk 0:01:10]}  Qf3 {[%clk 0:01:21]} 27. Rc2 {[%clk 0:01:01]}  Rd8 {[%clk 0:01:14]} 28. Qb5 {[%clk 0:00:56]}  Bxe3 {[%clk 0:01:10]} 29. Qxe5+ {[%clk 0:00:56]}  Kg8 {[%clk 0:01:01]} 30. Qxe3 {[%clk 0:00:55]}  Qxe3 {[%clk 0:01:00]} 31. Rxe3 {[%clk 0:00:55]}  Rd1+ {[%clk 0:00:59]} 32. Kg2 {[%clk 0:00:50]}  Rd2 {[%clk 0:01:00]} 33. Rxd2 {[%clk 0:00:50]}  cxd2 {[%clk 0:01:00]} 34. Rd3 {[%clk 0:00:50]}  a5 {[%clk 0:01:00]} 35. Rxd2 {[%clk 0:00:51]}  Ra7 {[%clk 0:01:00]} 36. Ra2 {[%clk 0:00:51]}  Kf7 {[%clk 0:00:58]} 37. Kf3 {[%clk 0:00:49]}  Ke6 {[%clk 0:00:58]} 38. Kf4 {[%clk 0:00:46]}  Kd5 {[%clk 0:00:55]} 39. Kg5 {[%clk 0:00:46]}  Kc4 {[%clk 0:00:55]} 40. f4 {[%clk 0:00:33]}  Kb3 {[%clk 0:00:54]} 41. Ra1 {[%clk 0:00:32]}  a4 {[%clk 0:00:53]} 42. g4 {[%clk 0:00:33]}  a3 {[%clk 0:00:53]} 43. h5 {[%clk 0:00:33]}  gxh5 {[%clk 0:00:51]} 44. Kxh5 {[%clk 0:00:33]}  a2 {[%clk 0:00:48]} 45. f5 {[%clk 0:00:32]}  Kb2 {[%clk 0:00:48]} 46. Rxa2+ {[%clk 0:00:28]}  Kxa2 {[%clk 0:00:30]} 47. g5 {[%clk 0:00:28]}  Kb3 {[%clk 0:00:23]} 48. g6 {[%clk 0:00:27]}  Kc4 {[%clk 0:00:23]} 49. Kh6 {[%clk 0:00:28]}  hxg6 {[%clk 0:00:21]} 50. fxg6 {[%clk 0:00:29]}  Kd5 {[%clk 0:00:21]} 51. g7 {[%clk 0:00:29]}  Ra8 {[%clk 0:00:20]} 52. Kh7 {[%clk 0:00:29]}  Ke6 {[%clk 0:00:21]} 53. g8=Q+ {[%clk 0:00:28]}  Rxg8 {[%clk 0:00:21]} 54. Kxg8 {[%clk 0:00:29]} 1/2-1/2


[Site "https://www.chess.com"]

[Event "Titled Tuesday Blitz May 24 Early 2022"]
[White "Durarbayli, Vasif"]
[Black "Kuderinov, Kirill"]
[WhiteFideId "13402935"]
[BlackFideId "13701568"]
[WhiteElo "2528"]
[BlackElo "2432"]
[Result "1-0"]
[Round "03"]
[TimeControl "180+1"]
[Date "2022.05.24"]
[WhiteClock "0:00:27"]
[BlackClock "0:01:24"]

1. d4 {[%clk 0:03:00]}  Nf6 {[%clk 0:02:58]} 2. c4 {[%clk 0:03:00]}  e6 {[%clk 0:02:58]} 3. Nc3 {[%clk 0:03:00]}  d5 {[%clk 0:02:57]} 4. cxd5 {[%clk 0:03:01]}  exd5 {[%clk 0:02:57]} 5. Bg5 {[%clk 0:03:01]}  c5 {[%clk 0:02:57]} 6. e3 {[%clk 0:02:53]}  Nc6 {[%clk 0:02:55]} 7. Bd3 {[%clk 0:02:46]}  cxd4 {[%clk 0:02:49]} 8. exd4 {[%clk 0:02:47]}  Nxd4 {[%clk 0:02:49]} 9. Nf3 {[%clk 0:02:15]}  Nxf3+ {[%clk 0:02:42]} 10. Qxf3 {[%clk 0:02:14]}  d4 {[%clk 0:02:38]} 11. Bb5+ {[%clk 0:01:26]}  Bd7 {[%clk 0:02:35]} 12. Bxf6 {[%clk 0:01:26]}  gxf6 {[%clk 0:02:20]} 13. O-O-O {[%clk 0:01:19]}  Bxb5 {[%clk 0:02:01]} 14. Rhe1+ {[%clk 0:01:08]}  Be7 {[%clk 0:01:58]} 15. Qxf6 {[%clk 0:01:01]}  O-O {[%clk 0:01:57]} 16. Rxe7 {[%clk 0:00:57]}  Qb6 {[%clk 0:01:38]} 17. Qxb6 {[%clk 0:00:51]}  axb6 {[%clk 0:01:38]} 18. Nxb5 {[%clk 0:00:52]}  Rxa2 {[%clk 0:01:35]} 19. Rxd4 {[%clk 0:00:43]}  Rc8+ {[%clk 0:01:34]} 20. Nc3 {[%clk 0:00:42]}  Ra1+ {[%clk 0:01:35]} 21. Kc2 {[%clk 0:00:42]}  Rg1 {[%clk 0:01:36]} 22. Rg4+ {[%clk 0:00:42]}  Kf8 {[%clk 0:01:36]} 23. Rxb7 {[%clk 0:00:42]}  h5 {[%clk 0:01:35]} 24. Rf4 {[%clk 0:00:42]}  Rxg2 {[%clk 0:01:35]} 25. Rfxf7+ {[%clk 0:00:38]}  Kg8 {[%clk 0:01:35]} 26. h4 {[%clk 0:00:39]}  b5 {[%clk 0:01:24]} 27. Rf5 {[%clk 0:00:38]}  b4 {[%clk 0:01:24]} 28. Rxb4 {[%clk 0:00:36]}  Rc6 {[%clk 0:01:24]} 29. Rg5+ {[%clk 0:00:29]}  Rxg5 {[%clk 0:01:24]} 30. hxg5 {[%clk 0:00:30]}  Kg7 {[%clk 0:01:24]} 31. Rf4 {[%clk 0:00:27]}  Kg6 {[%clk 0:01:24]} 32. Rf6+ {[%clk 0:00:27]}  Rxf6 {[%clk 0:01:25]} 33. gxf6 {[%clk 0:00:28]}  h4 {[%clk 0:01:25]} 34. Ne4 {[%clk 0:00:28]}  Kf5 {[%clk 0:01:26]} 35. Kd3 {[%clk 0:00:28]}  h3 {[%clk 0:01:24]} 36. f7 {[%clk 0:00:27]} 1-0


[Site "https://www.chess.com"]

[Event "Titled Tuesday Blitz May 24 Early 2022"]
[White "Estrada Nieto, Julian"]
[Black "Agasarov, Benik"]
[WhiteFideId "5101018"]
[BlackFideId "13314823"]
[WhiteElo "2252"]
[BlackElo "2629"]
[Result "1-0"]
[Round "03"]
[TimeControl "180+1"]
[Date "2022.05.25"]
[WhiteClock "0:00:35"]
[BlackClock "0:00:02"]

1. e4 {[%clk 0:03:00]}  c5 {[%clk 0:02:58]} 2. Nf3 {[%clk 0:03:00]}  d6 {[%clk 0:02:57]} 3. Bb5+ {[%clk 0:02:59]}  Nd7 {[%clk 0:02:56]} 4. d4 {[%clk 0:02:59]}  cxd4 {[%clk 0:02:54]} 5. Qxd4 {[%clk 0:03:00]}  a6 {[%clk 0:02:54]} 6. Bxd7+ {[%clk 0:02:59]}  Bxd7 {[%clk 0:02:53]} 7. Nc3 {[%clk 0:03:00]}  e6 {[%clk 0:02:45]} 8. Bg5 {[%clk 0:02:43]}  Nf6 {[%clk 0:02:45]} 9. O-O-O {[%clk 0:02:40]}  Be7 {[%clk 0:02:45]} 10. e5 {[%clk 0:02:40]}  dxe5 {[%clk 0:02:09]} 11. Nxe5 {[%clk 0:02:39]}  Bc6 {[%clk 0:02:01]} 12. Nxc6 {[%clk 0:02:38]}  bxc6 {[%clk 0:01:59]} 13. Bxf6 {[%clk 0:02:37]}  Bxf6 {[%clk 0:01:58]} 14. Qc5 {[%clk 0:02:32]}  Qc7 {[%clk 0:01:52]} 15. Nd5 {[%clk 0:02:30]}  exd5 {[%clk 0:01:40]} 16. Rhe1+ {[%clk 0:02:29]}  Be7 {[%clk 0:01:32]} 17. Rxe7+ {[%clk 0:02:20]}  Qxe7 {[%clk 0:01:22]} 18. Qxc6+ {[%clk 0:02:20]}  Kf8 {[%clk 0:01:22]} 19. Qxa8+ {[%clk 0:02:19]}  Qe8 {[%clk 0:01:22]} 20. Qxe8+ {[%clk 0:02:16]}  Kxe8 {[%clk 0:01:23]} 21. Rxd5 {[%clk 0:02:16]}  Ke7 {[%clk 0:01:23]} 22. Ra5 {[%clk 0:02:13]}  Ra8 {[%clk 0:01:22]} 23. Kd2 {[%clk 0:02:10]}  g6 {[%clk 0:01:20]} 24. c4 {[%clk 0:02:05]}  h5 {[%clk 0:01:19]} 25. Kc3 {[%clk 0:02:02]}  f6 {[%clk 0:01:17]} 26. b4 {[%clk 0:02:01]}  Kd7 {[%clk 0:01:11]} 27. b5 {[%clk 0:02:00]}  Re8 {[%clk 0:01:07]} 28. bxa6 {[%clk 0:01:45]}  Kc7 {[%clk 0:00:48]} 29. a7 {[%clk 0:01:44]}  Ra8 {[%clk 0:00:47]} 30. Kd4 {[%clk 0:01:40]}  Kb6 {[%clk 0:00:45]} 31. Ra3 {[%clk 0:01:37]}  Rd8+ {[%clk 0:00:42]} 32. Ke3 {[%clk 0:01:31]}  Re8+ {[%clk 0:00:35]} 33. Kf3 {[%clk 0:01:28]}  Ra8 {[%clk 0:00:35]} 34. h4 {[%clk 0:01:25]}  Kc5 {[%clk 0:00:34]} 35. Ra4 {[%clk 0:01:24]}  Kd4 {[%clk 0:00:32]} 36. Kf4 {[%clk 0:01:23]}  Kc5 {[%clk 0:00:32]} 37. f3 {[%clk 0:01:22]}  Kd4 {[%clk 0:00:32]} 38. g4 {[%clk 0:01:22]}  hxg4 {[%clk 0:00:32]} 39. fxg4 {[%clk 0:01:22]}  Kc5 {[%clk 0:00:32]} 40. h5 {[%clk 0:01:20]}  gxh5 {[%clk 0:00:32]} 41. gxh5 {[%clk 0:01:20]}  Kd6 {[%clk 0:00:30]} 42. Kf5 {[%clk 0:01:20]}  Ke7 {[%clk 0:00:29]} 43. h6 {[%clk 0:01:18]}  Kf7 {[%clk 0:00:29]} 44. Ra6 {[%clk 0:01:14]}  Kg8 {[%clk 0:00:27]} 45. Kg6 {[%clk 0:01:10]}  Kh8 {[%clk 0:00:26]} 46. c5 {[%clk 0:01:07]}  f5 {[%clk 0:00:20]} 47. Kxf5 {[%clk 0:01:06]}  Kh7 {[%clk 0:00:19]} 48. Ke5 {[%clk 0:01:03]}  Re8+ {[%clk 0:00:15]} 49. Kd6 {[%clk 0:01:02]}  Ra8 {[%clk 0:00:15]} 50. Kc7 {[%clk 0:01:02]}  Kh8 {[%clk 0:00:11]} 51. Kb7 {[%clk 0:00:59]}  Rd8 {[%clk 0:00:10]} 52. a8=Q {[%clk 0:00:58]}  Kh7 {[%clk 0:00:10]} 53. Ra7 {[%clk 0:00:38]}  Kxh6 {[%clk 0:00:02]} 54. Qxd8 {[%clk 0:00:35]} 1-0


[Site "https://www.chess.com"]

[Event "Titled Tuesday Blitz May 24 Early 2022"]
[White "Eynullayev, Atilla"]
[Black "Ramirez Vido, Robert Yorisan"]
[WhiteFideId "13413570"]
[BlackFideId "3513823"]
[WhiteElo "1936"]
[BlackElo "2341"]
[Result "0-1"]
[Round "03"]
[TimeControl "180+1"]
[Date "2022.05.25"]
[WhiteClock "0:00:02"]
[BlackClock "0:00:37"]

1. e4 {[%clk 0:03:00]}  d6 {[%clk 0:02:58]} 2. d4 {[%clk 0:03:00]}  Nf6 {[%clk 0:02:57]} 3. Nc3 {[%clk 0:03:01]}  g6 {[%clk 0:02:57]} 4. Bg5 {[%clk 0:03:01]}  Bg7 {[%clk 0:02:56]} 5. Qd2 {[%clk 0:03:01]}  c6 {[%clk 0:02:55]} 6. Bd3 {[%clk 0:02:51]}  Nbd7 {[%clk 0:02:54]} 7. Bh6 {[%clk 0:02:50]}  Bxh6 {[%clk 0:02:41]} 8. Qxh6 {[%clk 0:02:51]}  Qb6 {[%clk 0:02:41]} 9. Nge2 {[%clk 0:02:32]}  e5 {[%clk 0:02:34]} 10. dxe5 {[%clk 0:02:26]}  dxe5 {[%clk 0:02:31]} 11. O-O {[%clk 0:02:25]}  Qc5 {[%clk 0:02:24]} 12. a3 {[%clk 0:02:19]}  Qf8 {[%clk 0:02:24]} 13. Qe3 {[%clk 0:02:16]}  Qc5 {[%clk 0:02:22]} 14. Qf3 {[%clk 0:02:12]}  O-O {[%clk 0:02:21]} 15. b4 {[%clk 0:02:12]}  Qe7 {[%clk 0:02:18]} 16. Ng3 {[%clk 0:01:57]}  a5 {[%clk 0:02:15]} 17. Rab1 {[%clk 0:01:36]}  axb4 {[%clk 0:02:07]} 18. axb4 {[%clk 0:01:37]}  Nb6 {[%clk 0:02:03]} 19. Qd1 {[%clk 0:01:22]}  Rd8 {[%clk 0:02:01]} 20. Qd2 {[%clk 0:01:20]}  Kg7 {[%clk 0:01:28]} 21. f4 {[%clk 0:01:14]}  Nc4 {[%clk 0:01:13]} 22. Qe2 {[%clk 0:01:07]}  exf4 {[%clk 0:01:13]} 23. Bxc4 {[%clk 0:00:52]}  fxg3 {[%clk 0:01:12]} 24. hxg3 {[%clk 0:00:52]}  Qe5 {[%clk 0:01:08]} 25. Rb3 {[%clk 0:00:40]}  b5 {[%clk 0:00:58]} 26. Bd3 {[%clk 0:00:21]}  Be6 {[%clk 0:00:58]} 27. Nd1 {[%clk 0:00:03]}  Bxb3 {[%clk 0:00:57]} 28. cxb3 {[%clk 0:00:04]}  Qd4+ {[%clk 0:00:57]} 29. Nf2 {[%clk 0:00:05]}  h5 {[%clk 0:00:53]} 30. Bb1 {[%clk 0:00:03]}  Ng4 {[%clk 0:00:49]} 31. e5 {[%clk 0:00:03]}  Ra1 {[%clk 0:00:37]} 32. e6 {[%clk 0:00:02]}  Nxf2 {[%clk 0:00:37]} 0-1


[Site "https://www.chess.com"]

[Event "Titled Tuesday Blitz May 24 Early 2022"]
[White "Ferguson, Randal"]
[Black "Hart, Braeden"]
[WhiteFideId "30903106"]
[BlackFideId "30962587"]
[WhiteElo "2158"]
[BlackElo "2389"]
[Result "0-1"]
[Round "03"]
[TimeControl "180+1"]
[Date "2022.05.25"]
[WhiteClock "0:00:06"]
[BlackClock "0:00:54"]

1. e4 {[%clk 0:03:00]}  e5 {[%clk 0:03:00]} 2. Nf3 {[%clk 0:03:00]}  d5 {[%clk 0:03:00]} 3. Nxe5 {[%clk 0:02:56]}  Bd6 {[%clk 0:03:01]} 4. d4 {[%clk 0:02:52]}  dxe4 {[%clk 0:03:01]} 5. Nc4 {[%clk 0:02:39]}  Nf6 {[%clk 0:03:00]} 6. Nc3 {[%clk 0:02:37]}  Nc6 {[%clk 0:03:00]} 7. Bg5 {[%clk 0:02:35]}  Bf5 {[%clk 0:03:00]} 8. Ne3 {[%clk 0:02:33]}  Bg6 {[%clk 0:02:59]} 9. Ncd5 {[%clk 0:02:25]}  Be7 {[%clk 0:02:42]} 10. Nxe7 {[%clk 0:02:25]}  Qxe7 {[%clk 0:02:43]} 11. Nd5 {[%clk 0:02:22]}  Qd6 {[%clk 0:02:40]} 12. Nxf6+ {[%clk 0:01:55]}  gxf6 {[%clk 0:02:41]} 13. Be3 {[%clk 0:01:55]}  O-O-O {[%clk 0:02:40]} 14. c3 {[%clk 0:01:48]}  h5 {[%clk 0:02:39]} 15. g3 {[%clk 0:01:44]}  h4 {[%clk 0:02:38]} 16. Bg2 {[%clk 0:01:36]}  h3 {[%clk 0:02:37]} 17. Bf1 {[%clk 0:01:26]}  Bh5 {[%clk 0:02:37]} 18. Be2 {[%clk 0:01:27]}  Bxe2 {[%clk 0:02:34]} 19. Qxe2 {[%clk 0:01:27]}  Qd5 {[%clk 0:02:28]} 20. b3 {[%clk 0:01:15]}  f5 {[%clk 0:02:23]} 21. O-O-O {[%clk 0:01:15]}  Kb8 {[%clk 0:02:11]} 22. Kb2 {[%clk 0:01:07]}  Ne7 {[%clk 0:02:10]} 23. c4 {[%clk 0:01:03]}  Qd6 {[%clk 0:01:59]} 24. d5 {[%clk 0:00:46]}  Ng6 {[%clk 0:01:58]} 25. Rd2 {[%clk 0:00:35]}  Rhe8 {[%clk 0:01:57]} 26. Rhd1 {[%clk 0:00:35]}  f4 {[%clk 0:01:58]} 27. c5 {[%clk 0:00:26]}  Qe5+ {[%clk 0:01:51]} 28. Bd4 {[%clk 0:00:26]}  Qf5 {[%clk 0:01:34]} 29. d6 {[%clk 0:00:19]}  cxd6 {[%clk 0:01:29]} 30. cxd6 {[%clk 0:00:18]}  Rxd6 {[%clk 0:01:28]} 31. Bc3 {[%clk 0:00:07]}  Red8 {[%clk 0:01:23]} 32. Rxd6 {[%clk 0:00:06]}  Rxd6 {[%clk 0:01:24]} 33. Rc1 {[%clk 0:00:06]}  fxg3 {[%clk 0:01:19]} 34. hxg3 {[%clk 0:00:06]}  Qf3 {[%clk 0:01:14]} 35. Qc4 {[%clk 0:00:06]}  Qxf2+ {[%clk 0:01:06]} 36. Ka1 {[%clk 0:00:06]}  a6 {[%clk 0:00:54]} 0-1


[Site "https://www.chess.com"]